[Event "46th GRE-chT Premier 2018"]
[Site "Rio Achaia"]
[Date "2018.07.11"]
[Round "3"]
[White "Gavriil, Odysseas-Panagiotis"]
[Black "Berbatis, Antonios"]
[Result "1-0"]
[ECO "A05"]
[WhiteElo "1910"]
[BlackElo "1881"]
[Annotator "NA"]
[PlyCount "53"]
[EventDate "2018.07.10"]
[EventType "team-tourn"]
[EventCountry "GRE"]
[SourceTitle "playchess.com"]
[Source "ChessBase"]
[SourceQuality "1"]
[TimeControl "40/5400+30:1800+30"]

1. Nf3 {[%emt 0:00:35]} Nf6 {[%emt 0:00:00]} 2. g3 {[%emt 0:00:09]} e6 {[%emt 0:00:00]} 3. Bg2 {[%emt 0:00:14]} b6 {[%emt 0:00:22]} 4. O-O {[%emt 0:01:06]} Bb7 {[%emt 0:00:17]} 5. d3 {[%emt 0:00:33]} d5 {[%emt 0:00:44]} 6. Nbd2 {[%emt 0:02:37]} Be7 {[%emt 0:01:43]} 7. Re1 {[%emt 0:00:58]} O-O {[%emt 0:01:16]} 8. e4 {[%emt 0:01:26]} dxe4 9. Ng5 {[%emt 0:00:18]} h6 {[%emt 0:13:49]} 10. Ngxe4 {[%emt 0:00:09]} Nxe4 {[%emt 0:00:09]} 11. Nxe4 {[%emt 0:00:31]} Nd7 {[%emt 0:01:22]} 12. Nf6+ {[%emt 0:03:07]} Bxf6 {[%emt 0:05:10]} 13. Bxb7 {[%emt 0:00:07]} Rb8 {[%emt 0:00:04]} 14. Bg2 {[%emt 0:00:09]} Ne5 {[%emt 0:11:28]} 15. Rb1 {[%emt 0:01:17]} Qd7 {[%emt 0:01:36]} 16. Bf4 {[%emt 0:05:51]} Ng6 {[%emt 0:01:28]} 17. Be3 {[%emt 0:02:14]} c5 {[%emt 0:03:46]} 18. Be4 {[%emt 0:10:57]} Ne7 {[%emt 0:09:31]} 19. Qf3 {[%emt 0:02:51]} Nd5 {[%emt 0:11:04]} 20. Bd2 {[%emt 0:12:01]} Bg5 {[%emt 0:05:45]} 21. Bxg5 {[%emt 0:02:13]} hxg5 {[%emt 0:00:03]} 22. Bxd5 {[%emt 0:00:22]} exd5 {[%emt 0:02:08]} 23. Re5 {[%emt 0:00:58]} d4 {[%emt 0:04:12]} 24. Rxg5 {[%emt 0:00:57]} Qa4 {[%emt 0:00:03]} 25. Qf6 {[%emt 0:09:02]} g6 {[%emt 0:00:13]} 26. Rg4 {[%emt 0:03:29]} Qxc2 {[%emt 0:11:12]} 27. Rh4 {[%emt 0:02:10]} 1-0

[Event "46th GRE-chT Premier 2018"]
[Site "Rio Achaia"]
[Date "2018.07.11"]
[Round "3"]
[White "Karakatsanis, Nikolaos"]
[Black "Michaelides, Konstantinos"]
[Result "1-0"]
[ECO "A45"]
[WhiteElo "1907"]
[BlackElo "2282"]
[Annotator "NA"]
[PlyCount "91"]
[EventDate "2018.07.10"]
[EventType "team-tourn"]
[EventCountry "GRE"]
[SourceTitle "playchess.com"]
[Source "ChessBase"]
[SourceQuality "1"]
[TimeControl "40/5400+30:1800+30"]

1. d4 {[%emt 0:06:20]} Nf6 {[%emt 0:00:00]} 2. Bf4 {[%emt 0:00:05]} e6 {[%emt 0:00:23]} 3. e3 {[%emt 0:00:04]} c5 {[%emt 0:00:31]} 4. Nf3 {[%emt 0:00:07]} cxd4 {[%emt 0:00:29]} 5. exd4 {[%emt 0:00:04]} Be7 {[%emt 0:00:40]} 6. Bd3 {[%emt 0:00:40]} O-O {[%emt 0:00:19]} 7. O-O {[%emt 0:01:36]} d6 {[%emt 0:00:23]} 8. Nc3 {[%emt 0:01:47]} b6 {[%emt 0:01:52]} 9. Ne4 {[%emt 0:08:58]} Bb7 {[%emt 0:02:11]} 10. Qe2 {[%emt 0:00:11]} a6 {[%emt 0:04:32]} 11. Rfe1 {[%emt 0:00:25]} Nxe4 {[%emt 0:01:56]} 12. Bxe4 {[%emt 0:00:05]} Bxe4 {[%emt 0:00:06]} 13. Qxe4 {[%emt 0:00:04]} d5 {[%emt 0:00:10]} 14. Qd3 {[%emt 0:00:44]} Nc6 {[%emt 0:01:18]} 15. Ne5 {[%emt 0:03:37]} Nxe5 {[%emt 0:01:32]} 16. Bxe5 {[%emt 0:00:08]} Bf6 {[%emt 0:00:41]} 17. Qf3 {[%emt 0:03:43]} Bxe5 {[%emt 0:00:35]} 18. Rxe5 {[%emt 0:00:08]} Qc7 {[%emt 0:01:01]} 19. c3 {[%emt 0:00:09]} b5 {[%emt 0:00:21]} 20. Rae1 {[%emt 0:00:31]} Qc4 {[%emt 0:01:03]} 21. b3 {[%emt 0:04:54]} Qc7 {[%emt 0:00:50]} 22. Rg5 {[%emt 0:01:06]} Kh8 {[%emt 0:04:49]} 23. Rh5 {[%emt 0:05:52]} Kg8 {[%emt 0:04:45]} 24. Re3 {[%emt 0:01:40]} f5 {[%emt 0:30:34]} 25. Rxe6 {[%emt 0:06:05]} Qf7 {[%emt 0:01:19]} 26. Re5 {[%emt 0:02:51]} g6 {[%emt 0:05:32]} 27. Rh3 {[%emt 0:00:30]} Rae8 {[%emt 0:00:44]} 28. Qf4 {[%emt 0:00:52]} Qc7 {[%emt 0:02:59]} 29. Rd3 {[%emt 0:08:36]} b4 {[%emt 0:01:49]} 30. Qe3 {[%emt 0:00:25]} f4 {[%emt 0:00:27]} 31. Qe1 {[%emt 0:00:28]} Rxe5 {[%emt 0:01:48]} 32. dxe5 {[%emt 0:00:30]} Re8 {[%emt 0:01:14]} 33. cxb4 {[%emt 0:07:22]} Rxe5 {[%emt 0:00:38]} 34. Qd2 {[%emt 0:00:06]} Qc2 {[%emt 0:03:54]} 35. h3 {[%emt 0:01:09]} Qb1+ {[%emt 0:00:26]} 36. Kh2 {[%emt 0:00:15]} Re1 {[%emt 0:00:26]} 37. g3 {[%emt 0:02:10]} f3 {[%emt 0:18:28]} 38. g4 {[%emt 0:00:12]} Re2 {[%emt 0:01:32]} 39. Qc3 {[%emt 0:07:27]} Rxf2+ {[%emt 0:00:56]} 40. Kg3 {[%emt 0:00:00]} Rg2+ {[%emt 0:00:00]} 41. Kh4 {[%emt 0:03:44]} Rc2 {[%emt 0:12:44]} 42. Qe5 {[%emt 0:00:27]} Qc1 {[%emt 0:13:05]} 43. Qxd5+ {[%emt 0:00:39]} Kg7 {[%emt 0:00:14]} 44. Qe5+ {[%emt 0:00:23]} Kf8 {[%emt 0:00:58]} 45. Rd8+ {[%emt 0:00:13]} Kf7 {[%emt 0:00:05]} 46. Rd7+ {[%emt 0:00:03] a5} 1-0

[Event "46th GRE-chT Premier 2018"]
[Site "Rio Achaia"]
[Date "2018.07.11"]
[Round "3"]
[White "Serefidou, Despina"]
[Black "Skaraki, Antigoni"]
[Result "1-0"]
[ECO "B52"]
[WhiteElo "1906"]
[BlackElo "2027"]
[Annotator "NA"]
[PlyCount "65"]
[EventDate "2018.07.10"]
[EventType "team-tourn"]
[EventCountry "GRE"]
[SourceTitle "playchess.com"]
[Source "ChessBase"]
[SourceQuality "1"]
[TimeControl "40/5400+30:1800+30"]

1. e4 {[%emt 0:00:00]} c5 {[%emt 0:00:00]} 2. Nf3 {[%emt 0:00:00]} d6 {[%emt 0:00:00]} 3. Bb5+ {[%emt 0:00:00]} Bd7 {[%emt 0:00:00]} 4. Bxd7+ {[%emt 0:00:10]} Qxd7 {[%emt 0:00:00]} 5. O-O {[%emt 0:00:12]} Nc6 {[%emt 0:00:41]} 6. c3 {[%emt 0:01:08]} Nf6 {[%emt 0:14:59]} 7. Qe2 {[%emt 0:05:53]} e5 {[%emt 0:11:08]} 8. d3 {[%emt 0:08:15]} Be7 {[%emt 0:01:07]} 9. Na3 {[%emt 0:05:27]} Rb8 {[%emt 0:10:36]} 10. Nc4 {[%emt 0:20:09]} O-O {[%emt 0:20:31]} 11. Ne3 {[%emt 0:05:03]} d5 {[%emt 0:02:34]} 12. Nf5 {[%emt 0:03:43]} dxe4 {[%emt 0:02:06]} 13. dxe4 {[%emt 0:03:07]} Rfd8 {[%emt 0:01:42]} 14. Bg5 {[%emt 0:09:25]} Qe6 {[%emt 0:05:48]} 15. Nxe7+ {[%emt 0:11:23]} Nxe7 {[%emt 0:01:10]} 16. Bxf6 {[%emt 0:00:58]} Qxf6 {[%emt 0:01:06]} 17. Rfd1 {[%emt 0:01:07]} h6 {[%emt 0:08:19]} 18. Qc4 {[%emt 0:10:01]} b6 {[%emt 0:04:08]} 19. Qa4 {[%emt 0:03:06]} a5 {[%emt 0:01:55]} 20. Rd7 {[%emt 0:01:54]} Ng6 {[%emt 0:08:58]} 21. Rad1 {[%emt 0:00:48]} Nf4 {[%emt 0:01:44]} 22. Nxe5 {[%emt 0:06:09]} Rxd7 {[%emt 0:01:36]} 23. Nxd7 {[%emt 0:00:03]} Qg5 {[%emt 0:00:40]} 24. g3 {[%emt 0:00:18]} Rb7 {[%emt 0:00:32]} 25. Qc6 {[%emt 0:03:24]} Qg4 {[%emt 0:00:11]} 26. Rd2 {[%emt 0:00:22]} Nh3+ {[%emt 0:00:42]} 27. Kf1 {[%emt 0:00:13]} Ra7 {[%emt 0:00:39]} 28. Qc8+ {[%emt 0:00:15]} Kh7 {[%emt 0:00:20]} 29. Nf6+ {[%emt 0:00:14]} gxf6 {[%emt 0:00:29]} 30. Qxg4 {[%emt 0:00:07]} Ng5 {[%emt 0:00:16]} 31. Qf5+ {[%emt 0:00:07]} Kg7 {[%emt 0:00:12]} 32. h4 {[%emt 0:00:30]} Ne6 {[%emt 0:00:21]} 33. e5 {[%emt 0:00:43]} 1-0

[Event "46th GRE-chT Premier 2018"]
[Site "Rio Achaia"]
[Date "2018.07.11"]
[Round "3"]
[White "Brokalakis - Gounaris, Christos"]
[Black "Damianou, Ioannis"]
[Result "1-0"]
[ECO "E46"]
[WhiteElo "1901"]
[BlackElo "2058"]
[Annotator "NA"]
[PlyCount "59"]
[EventDate "2018.07.10"]
[EventType "team-tourn"]
[EventCountry "GRE"]
[SourceTitle "playchess.com"]
[Source "ChessBase"]
[SourceQuality "1"]
[TimeControl "40/5400+30:1800+30"]

1. d4 {[%emt 0:00:00]} Nf6 {[%emt 0:00:00]} 2. c4 {[%emt 0:00:13]} e6 {[%emt 0:00:00]} 3. Nc3 {[%emt 0:01:05]} Bb4 {[%emt 0:00:09]} 4. e3 {[%emt 0:01:08]} O-O {[%emt 0:00:25]} 5. Nge2 {[%emt 0:00:10]} c6 {[%emt 0:00:06]} 6. a3 {[%emt 0:00:15]} Ba5 {[%emt 0:00:10]} 7. c5 {[%emt 0:00:35]} d5 {[%emt 0:01:17]} 8. cxd6 {[%emt 0:00:19]} Qxd6 {[%emt 0:00:07]} 9. b4 {[%emt 0:05:54]} Bc7 {[%emt 0:00:06]} 10. g3 {[%emt 0:00:36]} e5 {[%emt 0:04:36]} 11. Bb2 {[%emt 0:02:57]} Nbd7 {[%emt 0:01:36]} 12. Bg2 {[%emt 0:01:23]} exd4 {[%emt 0:01:36]} 13. Qxd4 {[%emt 0:05:51]} Ne5 {[%emt 0:04:08]} 14. O-O {[%emt 0:02:56]} Be6 {[%emt 0:07:07]} 15. Rfd1 {[%emt 0:02:32]} Qe7 {[%emt 0:01:21]} 16. Ne4 {[%emt 0:04:15]} Bb3 {[%emt 0:12:35]} 17. Rdb1 {[%emt 0:22:47]} Bc4 {[%emt 0:15:05]} 18. Nxf6+ {[%emt 0:02:53]} Qxf6 {[%emt 0:00:39]} 19. Qxc4 {[%emt 0:03:52]} Nxc4 {[%emt 0:00:15]} 20. Bxf6 {[%emt 0:00:10]} gxf6 {[%emt 0:00:04]} 21. b5 {[%emt 0:04:50]} Be5 {[%emt 0:01:52]} 22. Ra2 {[%emt 0:00:29]} cxb5 {[%emt 0:00:39]} 23. Rxb5 {[%emt 0:00:38]} Rad8 {[%emt 0:05:57]} 24. Bxb7 {[%emt 0:02:13]} Rd3 {[%emt 0:03:40]} 25. Be4 {[%emt 0:02:54]} Rd1+ {[%emt 0:04:35]} 26. Kg2 {[%emt 0:00:43]} Nd6 {[%emt 0:00:15]} 27. Rd5 {[%emt 0:01:24]} Re1 {[%emt 0:03:40]} 28. Bd3 {[%emt 0:01:42]} Rd1 {[%emt 0:02:18]} 29. Bxh7+ {[%emt 0:00:46]} Kxh7 {[%emt 0:00:07]} 30. Rxd1 {[%emt 0:00:04]} 1-0

[Event "46th GRE-chT Premier 2018"]
[Site "Rio Achaia"]
[Date "2018.07.11"]
[Round "3"]
[White "Kalofonos, Panayotis"]
[Black "Michos, Thomas"]
[Result "1/2-1/2"]
[ECO "C49"]
[WhiteElo "1896"]
[BlackElo "2211"]
[Annotator "NA"]
[PlyCount "60"]
[EventDate "2018.07.10"]
[EventType "team-tourn"]
[EventCountry "GRE"]
[SourceTitle "playchess.com"]
[Source "ChessBase"]
[SourceQuality "1"]
[TimeControl "40/5400+30:1800+30"]

1. e4 {[%emt 0:02:45]} e5 {[%emt 0:00:00]} 2. Nf3 {[%emt 0:00:05]} Nc6 {[%emt 0:00:00]} 3. Nc3 {[%emt 0:00:11]} Nf6 {[%emt 0:00:00]} 4. Bb5 {[%emt 0:00:05]} Bb4 {[%emt 0:00:00]} 5. O-O {[%emt 0:00:09]} O-O {[%emt 0:00:06]} 6. d3 {[%emt 0:01:03]} d6 {[%emt 0:00:15]} 7. Ne2 {[%emt 0:00:09]} Ne7 {[%emt 0:00:14]} 8. Ng3 {[%emt 0:00:20]} Ng6 {[%emt 0:00:12]} 9. c3 {[%emt 0:00:43]} Ba5 {[%emt 0:00:04]} 10. d4 {[%emt 0:01:57]} c6 {[%emt 0:00:16]} 11. Bd3 {[%emt 0:00:38]} Re8 {[%emt 0:01:41]} 12. h3 {[%emt 0:11:29]} h6 {[%emt 0:13:52]} 13. Be3 {[%emt 0:01:02]} Be6 {[%emt 0:14:18]} 14. Qc2 {[%emt 0:10:45]} Qd7 {[%emt 0:04:02]} 15. Rad1 {[%emt 0:18:56]} Bb6 {[%emt 0:06:20]} 16. Rfe1 {[%emt 0:04:03]} Rad8 {[%emt 0:00:59]} 17. Nf5 {[%emt 0:12:26]} exd4 {[%emt 0:14:39]} 18. cxd4 {[%emt 0:01:02]} Bxf5 {[%emt 0:00:31]} 19. exf5 {[%emt 0:00:09]} Ne7 {[%emt 0:00:24]} 20. Bd2 {[%emt 0:07:14]} Ned5 {[%emt 0:02:53]} 21. g3 {[%emt 0:03:43]} Rxe1+ {[%emt 0:00:41]} 22. Rxe1 {[%emt 0:00:15]} Re8 {[%emt 0:00:20]} 23. Rxe8+ {[%emt 0:06:55]} Qxe8 {[%emt 0:00:06]} 24. Kg2 {[%emt 0:00:39]} Qd7 {[%emt 0:05:16]} 25. Qd1 {[%emt 0:04:12]} Ne7 {[%emt 0:00:57]} 26. Qc2 {[%emt 0:00:04]} Ned5 {[%emt 0:00:04]} 27. Qd1 {[%emt 0:00:03]} Ne7 {[%emt 0:01:14]} 28. Qc2 {[%emt 0:00:10]} Ned5 {[%emt 0:00:02]} 29. Qd1 {[%emt 0:00:07]} Ne7 {[%emt 0:00:05]} 30. Qc2 {[%emt 0:00:04]} Ned5 {[%emt 0:00:01]} 1/2-1/2

[Event "46th GRE-chT Premier 2018"]
[Site "Rio Achaia"]
[Date "2018.07.11"]
[Round "3"]
[White "Georgiadis, Alexandros"]
[Black "Hrisomalis, Theodoros"]
[Result "0-1"]
[ECO "D46"]
[WhiteElo "1882"]
[BlackElo "2163"]
[Annotator "NA"]
[PlyCount "96"]
[EventDate "2018.07.10"]
[EventType "team-tourn"]
[EventCountry "GRE"]
[SourceTitle "playchess.com"]
[Source "ChessBase"]
[SourceQuality "1"]
[TimeControl "40/5400+30:1800+30"]

1. d4 {[%emt 0:00:00]} d5 {[%emt 0:00:00]} 2. c4 {[%emt 0:00:00]} e6 {[%emt 0:00:00]} 3. Nc3 {[%emt 0:00:17]} Nf6 {[%emt 0:00:04]} 4. Nf3 {[%emt 0:00:11]} c6 {[%emt 0:01:06]} 5. e3 {[%emt 0:08:18]} Nbd7 {[%emt 0:01:07]} 6. Bd3 {[%emt 0:00:30]} Bd6 {[%emt 0:00:28]} 7. O-O {[%emt 0:00:07]} O-O {[%emt 0:00:11]} 8. Qc2 {[%emt 0:03:58]} dxc4 {[%emt 0:04:03]} 9. Bxc4 {[%emt 0:00:07]} e5 {[%emt 0:00:26]} 10. Bb3 {[%emt 0:07:39]} exd4 {[%emt 0:02:37]} 11. exd4 {[%emt 0:00:10]} h6 {[%emt 0:02:27]} 12. h3 {[%emt 0:00:09]} Nb6 {[%emt 0:06:29]} 13. Bxh6 {[%emt 0:01:00]} gxh6 {[%emt 0:04:42]} 14. Qg6+ {[%emt 0:00:10]} Kh8 {[%emt 0:00:03]} 15. Qxh6+ {[%emt 0:01:20]} Nh7 {[%emt 0:00:07]} 16. Bc2 {[%emt 0:08:54]} f5 {[%emt 0:01:27]} 17. Nh4 {[%emt 0:00:20]} Qf6 {[%emt 0:03:17]} 18. Qh5 {[%emt 0:00:13]} Kg7 {[%emt 0:03:32]} 19. f4 {[%emt 0:12:31]} Qh6 {[%emt 0:02:56]} 20. Qxh6+ {[%emt 0:00:45]} Kxh6 {[%emt 0:00:01]} 21. Rae1 {[%emt 0:01:31]} Nd5 {[%emt 0:07:10]} 22. Nxd5 {[%emt 0:03:38]} cxd5 {[%emt 0:00:02]} 23. Re3 {[%emt 0:00:44]} Bd7 {[%emt 0:04:29]} 24. Bb3 {[%emt 0:00:33]} Nf6 {[%emt 0:01:41]} 25. g3 {[%emt 0:00:31]} Rae8 {[%emt 0:01:37]} 26. Rfe1 {[%emt 0:00:05]} Re4 {[%emt 0:02:45]} 27. Bc2 {[%emt 0:06:04]} Rxe3 {[%emt 0:03:11]} 28. Rxe3 {[%emt 0:00:05]} Ne4 {[%emt 0:00:34]} 29. Kh2 {[%emt 0:02:36]} Rg8 {[%emt 0:03:34]} 30. Ng2 {[%emt 0:01:34]} Bc7 {[%emt 0:01:38]} 31. Bxe4 {[%emt 0:07:09]} dxe4 {[%emt 0:08:43]} 32. Rb3 {[%emt 0:01:52]} Bb6 {[%emt 0:00:58]} 33. d5 {[%emt 0:06:25]} Rc8 {[%emt 0:03:01]} 34. Rc3 {[%emt 0:00:55]} Kg6 {[%emt 0:01:54]} 35. Nh4+ {[%emt 0:00:30]} Kf6 {[%emt 0:00:25]} 36. Kg2 {[%emt 0:00:07]} Bd4 {[%emt 0:01:24]} 37. Rxc8 {[%emt 0:00:07]} Bxc8 {[%emt 0:00:01]} 38. b3 {[%emt 0:00:11]} b5 {[%emt 0:01:59]} 39. Kf1 {[%emt 0:01:20]} b4 {[%emt 0:02:57]} 40. Ke1 {[%emt 0:00:00]} Bc5 {[%emt 0:00:00]} 41. Ng2 {[%emt 0:02:23]} Bb7 {[%emt 0:03:25]} 42. g4 {[%emt 0:00:12]} Bxd5 {[%emt 0:00:21]} 43. g5+ {[%emt 0:00:33]} Kf7 {[%emt 0:00:18]} 44. Nh4 {[%emt 0:01:43]} Be6 {[%emt 0:00:20]} 45. Ke2 {[%emt 0:00:17]} Bb6 {[%emt 0:01:23]} 46. Ng2 {[%emt 0:01:28]} Kg6 {[%emt 0:00:57]} 47. Ne1 {[%emt 0:00:22]} Bc5 {[%emt 0:00:24]} 48. Nc2 {[%emt 0:00:20]} Kh5 {[%emt 0:00:26]} 0-1

[Event "46th GRE-chT Premier 2018"]
[Site "Rio Achaia"]
[Date "2018.07.11"]
[Round "3"]
[White "Giatrakos, Orestis"]
[Black "Mourogiannis, Konstantinos"]
[Result "1-0"]
[ECO "C41"]
[WhiteElo "1860"]
[BlackElo "1805"]
[Annotator "NA"]
[PlyCount "83"]
[EventDate "2018.07.10"]
[EventType "team-tourn"]
[EventCountry "GRE"]
[SourceTitle "playchess.com"]
[Source "ChessBase"]
[SourceQuality "1"]
[TimeControl "40/5400+30:1800+30"]

1. e4 {[%emt 0:00:00]} e5 {[%emt 0:01:16]} 2. Nf3 {[%emt 0:00:00]} d6 {[%emt 0:00:06]} 3. d4 {[%emt 0:00:00]} Nd7 {[%emt 0:00:25]} 4. Nc3 {[%emt 0:00:28]} Be7 {[%emt 0:00:36]} 5. Bc4 {[%emt 0:00:07]} Ngf6 {[%emt 0:01:07]} 6. O-O {[%emt 0:01:30]} O-O {[%emt 0:00:08]} 7. a4 {[%emt 0:00:06]} a5 {[%emt 0:00:27]} 8. h3 {[%emt 0:01:00]} c6 {[%emt 0:01:27]} 9. Qe2 {[%emt 0:01:44]} Qc7 {[%emt 0:03:17]} 10. Rd1 {[%emt 0:01:25]} h6 {[%emt 0:17:33]} 11. Ba2 {[%emt 0:00:59]} Nb6 {[%emt 0:00:07]} 12. Qe3 {[%emt 0:01:55]} Nh5 {[%emt 0:09:56]} 13. dxe5 {[%emt 0:01:35]} dxe5 {[%emt 0:00:12]} 14. Qe2 {[%emt 0:09:05]} Be6 {[%emt 0:10:07]} 15. Ne1 {[%emt 0:14:28]} Bxa2 {[%emt 0:14:03]} 16. Qxh5 {[%emt 0:01:12]} Be6 {[%emt 0:03:21]} 17. Rd3 {[%emt 0:00:29]} Kh7 {[%emt 0:15:18]} 18. Rg3 {[%emt 0:02:11]} Rh8 {[%emt 0:04:35]} 19. Nf3 {[%emt 0:02:08]} Nd7 {[%emt 0:00:33]} 20. Ng5+ {[%emt 0:02:15]} Bxg5 {[%emt 0:00:25]} 21. Bxg5 {[%emt 0:01:13]} g6 {[%emt 0:02:22]} 22. Qh4 {[%emt 0:00:21]} Kg7 {[%emt 0:00:08]} 23. Be3 {[%emt 0:03:38]} Nb6 {[%emt 0:11:54]} 24. b3 {[%emt 0:00:43]} Rad8 {[%emt 0:00:56]} 25. Rf1 {[%emt 0:00:34]} Nc8 {[%emt 0:00:40]} 26. f4 {[%emt 0:00:33]} Qe7 {[%emt 0:00:50]} 27. Qxe7 {[%emt 0:00:34]} Nxe7 {[%emt 0:00:02]} 28. f5 {[%emt 0:00:11]} Bxf5 {[%emt 0:00:57]} 29. exf5 {[%emt 0:00:06]} Nd5 {[%emt 0:00:40]} 30. Nxd5 {[%emt 0:00:53]} cxd5 {[%emt 0:00:02]} 31. fxg6 {[%emt 0:00:09]} f6 {[%emt 0:00:50]} 32. Rgf3 {[%emt 0:00:38]} Rd6 {[%emt 0:00:14]} 33. Bc5 {[%emt 0:00:11]} Rc6 {[%emt 0:00:13]} 34. Be7 {[%emt 0:00:07]} Re8 {[%emt 0:01:28]} 35. Bxf6+ {[%emt 0:00:30]} Kxg6 {[%emt 0:00:03]} 36. Bh4 {[%emt 0:00:13]} Ree6 {[%emt 0:01:07]} 37. Rg3+ {[%emt 0:01:06]} Kh7 {[%emt 0:00:23]} 38. Rf7+ {[%emt 0:01:59]} Kh8 {[%emt 0:00:05]} 39. Rgg7 {[%emt 0:01:22]} e4 {[%emt 0:00:44]} 40. Rh7+ {[%emt 0:00:00]} Kg8 {[%emt 0:00:00]} 41. Rfg7+ {[%emt 0:00:22]} Kf8 {[%emt 0:00:17]} 42. Be7+ {[%emt 0:00:26]} 1-0

[Event "46th GRE-chT Premier 2018"]
[Site "Rio Achaia"]
[Date "2018.07.11"]
[Round "3"]
[White "Koukas, Anastasios"]
[Black "Kalogeris, Ioannis"]
[Result "0-1"]
[ECO "B47"]
[WhiteElo "1853"]
[BlackElo "2339"]
[Annotator "NA"]
[PlyCount "74"]
[EventDate "2018.07.10"]
[EventType "team-tourn"]
[EventCountry "GRE"]
[SourceTitle "playchess.com"]
[Source "ChessBase"]
[SourceQuality "1"]
[TimeControl "40/5400+30:1800+30"]

1. e4 {[%emt 0:00:00]} c5 {[%emt 0:01:48]} 2. Nf3 {[%emt 0:00:00]} e6 {[%emt 0:00:11]} 3. d4 {[%emt 0:00:00]} cxd4 {[%emt 0:00:06]} 4. Nxd4 {[%emt 0:00:00]} Nc6 {[%emt 0:00:22]} 5. Nc3 {[%emt 0:00:24]} Qc7 {[%emt 0:00:07]} 6. Be2 {[%emt 0:00:49]} a6 {[%emt 0:00:59]} 7. O-O {[%emt 0:01:18]} Nf6 {[%emt 0:00:13]} 8. Be3 {[%emt 0:00:54]} Bb4 {[%emt 0:00:34]} 9. Nxc6 {[%emt 0:03:57]} bxc6 {[%emt 0:01:00]} 10. Qd4 {[%emt 0:01:49]} c5 {[%emt 0:02:51]} 11. Qc4 {[%emt 0:01:16]} Bb7 {[%emt 0:10:56]} 12. a3 {[%emt 0:08:02]} Bxc3 {[%emt 0:03:15]} 13. Qxc3 {[%emt 0:00:11]} O-O {[%emt 0:04:52]} 14. f3 {[%emt 0:09:34]} Rfc8 {[%emt 0:01:11]} 15. Bg5 {[%emt 0:10:56]} Ne8 {[%emt 0:01:34]} 16. e5 {[%emt 0:10:29]} c4 {[%emt 0:04:12]} 17. Rad1 {[%emt 0:11:54]} Bd5 {[%emt 0:01:13]} 18. Be3 {[%emt 0:08:59]} Qc6 {[%emt 0:04:14]} 19. Qd4 {[%emt 0:04:34]} Rab8 {[%emt 0:03:13]} 20. Rb1 {[%emt 0:03:04]} d6 {[%emt 0:07:56]} 21. Bf4 {[%emt 0:05:01]} f6 {[%emt 0:00:42]} 22. exd6 {[%emt 0:05:23]} e5 {[%emt 0:00:41]} 23. Bxe5 {[%emt 0:02:33]} fxe5 {[%emt 0:00:32]} 24. Qxe5 {[%emt 0:00:55]} Nf6 {[%emt 0:04:25]} 25. Qf4 {[%emt 0:06:31]} Rb6 {[%emt 0:00:44]} 26. Rfd1 {[%emt 0:01:19]} Qxd6 {[%emt 0:00:24]} 27. Qd4 {[%emt 0:01:31]} Qc5 {[%emt 0:01:06]} 28. Kf2 {[%emt 0:01:08]} Qxd4+ {[%emt 0:01:33]} 29. Rxd4 {[%emt 0:00:02]} Kf7 {[%emt 0:00:50]} 30. b3 {[%emt 0:01:16]} cxb3 {[%emt 0:01:57]} 31. cxb3 {[%emt 0:00:50]} Rc2 {[%emt 0:00:27]} 32. b4 {[%emt 0:00:40]} Re6 {[%emt 0:00:36]} 33. Re1 {[%emt 0:00:17]} Bc6 {[%emt 0:00:24]} 34. Kf1 {[%emt 0:00:47]} Rexe2 {[%emt 0:00:10]} 35. Rxe2 {[%emt 0:00:20]} Bb5 {[%emt 0:00:06]} 36. Kf2 {[%emt 0:00:27]} Rxe2+ {[%emt 0:00:11]} 37. Kg3 {[%emt 0:00:02]} Re3 {[%emt 0:00:52]} 0-1

[Event "46th GRE-chT Premier 2018"]
[Site "Rio Achaia"]
[Date "2018.07.11"]
[Round "3"]
[White "Koutsogiannopoulou, Theodora"]
[Black "Juhasz, Barbara"]
[Result "1-0"]
[ECO "B41"]
[WhiteElo "1852"]
[BlackElo "2227"]
[Annotator "NA"]
[PlyCount "105"]
[EventDate "2018.07.10"]
[EventType "team-tourn"]
[EventCountry "GRE"]
[SourceTitle "playchess.com"]
[Source "ChessBase"]
[SourceQuality "1"]
[TimeControl "40/5400+30:1800+30"]

1. e4 {[%emt 0:01:22]} c5 {[%emt 0:00:00]} 2. Nf3 {[%emt 0:00:15]} e6 {[%emt 0:00:07]} 3. d4 {[%emt 0:00:19]} cxd4 {[%emt 0:00:11]} 4. Nxd4 {[%emt 0:00:07]} a6 {[%emt 0:00:11]} 5. c4 {[%emt 0:00:51]} Nf6 {[%emt 0:00:27]} 6. Nc3 {[%emt 0:03:53]} Qc7 {[%emt 0:01:37]} 7. f3 {[%emt 0:04:32]} Be7 {[%emt 0:08:20]} 8. Be3 {[%emt 0:01:27]} b6 {[%emt 0:04:54]} 9. Qd2 {[%emt 0:09:01]} Bb7 {[%emt 0:02:02]} 10. Rc1 {[%emt 0:01:37]} d6 {[%emt 0:01:16]} 11. Be2 {[%emt 0:01:46]} Nbd7 {[%emt 0:00:26]} 12. O-O {[%emt 0:01:08]} O-O {[%emt 0:00:25]} 13. Rfd1 {[%emt 0:00:41]} Rac8 {[%emt 0:00:38]} 14. Bf1 {[%emt 0:01:49]} Qb8 {[%emt 0:05:54]} 15. Qf2 {[%emt 0:04:56]} Rfe8 {[%emt 0:04:54]} 16. Kh1 {[%emt 0:13:33]} Bd8 {[%emt 0:03:31] [#]} 17. Rd2 $146 {[%emt 0:09:02] A31: Englische Eröffnung (Symmetrische Variante)} ({Vorgänger:} 17. h3 Bc7 18. b4 d5 19. cxd5 Bg3 20. Qd2 exd5 21. Nf5 dxe4 22. f4 Nh5 23. Qxd7 Bxf4 24. Bxf4 Qxf4 25. Ne2 {1-0 (25) Malakhov,V (2696)-Wang,Y (2442) China 2017}) 17... Ne5 {[%emt 0:12:27]} 18. b3 {[%emt 0:02:13]} d5 {[%emt 0:11:02]} 19. exd5 exd5 {[%emt 0:03:51]} 20. Nf5 {[%emt 0:07:53]} g6 {[%emt 0:09:20]} 21. Nh6+ {[%emt 0:03:45]} Kg7 {[%emt 0:00:11]} 22. cxd5 {[%emt 0:03:45]} Nxd5 {[%emt 0:04:18]} 23. Rxd5 {[%emt 0:05:48]} Bxd5 {[%emt 0:01:43]} 24. Nxd5 {[%emt 0:00:08]} Rxc1 {[%emt 0:00:07]} 25. Bxc1 {[%emt 0:00:10]} Qd6 {[%emt 0:00:12]} 26. Ne3 {[%emt 0:03:19]} Qc5 {[%emt 0:01:02]} 27. Bd2 {[%emt 0:04:24]} f6 {[%emt 0:15:29]} 28. Bxa6 {[%emt 0:09:14]} Bc7 {[%emt 0:00:52]} 29. a4 {[%emt 0:05:25]} Rd8 {[%emt 0:00:35]} 30. b4 {[%emt 0:01:15]} Qc6 {[%emt 0:01:11]} 31. Bb5 {[%emt 0:00:14]} Qe6 {[%emt 0:00:21]} 32. Nhg4 {[%emt 0:00:43]} Nxg4 {[%emt 0:03:08]} 33. Nxg4 {[%emt 0:00:28]} h5 {[%emt 0:00:08]} 34. Ne3 {[%emt 0:00:50]} Qa2 {[%emt 0:02:59]} 35. Be1 {[%emt 0:01:00]} Qa1 {[%emt 0:00:48]} 36. Kg1 {[%emt 0:00:32]} Bf4 {[%emt 0:01:06]} 37. g3 {[%emt 0:00:24]} Be5 {[%emt 0:00:36]} 38. Nc2 {[%emt 0:00:28]} Qc1 {[%emt 0:00:37]} 39. Kf1 {[%emt 0:00:28]} Rc8 {[%emt 0:01:08]} 40. Bd3 {[%emt 0:00:00]} Bc3 {[%emt 0:00:00]} 41. Qxb6 {[%emt 0:06:03]} Bxe1 {[%emt 0:02:49]} 42. Nxe1 {[%emt 0:03:14]} Re8 {[%emt 0:01:41]} 43. Be2 {[%emt 0:01:32]} Qb2 {[%emt 0:01:35]} 44. Qb5 {[%emt 0:01:04]} Re5 {[%emt 0:00:12]} 45. Qc4 {[%emt 0:01:05]} h4 {[%emt 0:04:01]} 46. f4 {[%emt 0:08:12]} Re7 {[%emt 0:00:39]} 47. Kf2 {[%emt 0:01:48]} hxg3+ {[%emt 0:00:20]} 48. hxg3 {[%emt 0:00:03]} Qd2 {[%emt 0:06:48]} 49. Nc2 {[%emt 0:01:50]} Kh6 {[%emt 0:02:53]} 50. a5 {[%emt 0:01:09]} Qd6 {[%emt 0:03:21]} 51. a6 {[%emt 0:03:52]} g5 {[%emt 0:05:31]} 52. Qd4 $18 {[%emt 0:03:14]} Qe6 {[%emt 0:00:56]} 53. Bc4 {[%emt 0:00:43]} 1-0